{"text_format":"1","workbook":"xlsx","n_sheets":5,"sheets":["FP","EG ","QU","Levels","EM"],"not_rendered":{"charts":0,"images":2,"macros":1,"external_links":0,"defined_names":0,"comments":0,"pivot_tables":0},"unopened":[],"bounds":{"document_bytes":16777216,"sheet_cells":100000,"rows_first":2000,"rows_last":500,"rows_between":2000,"halvings":0,"cell_chars":16384,"cell_head_chars":4096},"cells_cut":0,"cells_raw":0,"read":"whole","date_system":"1900"}

{"sheet":"FP","index":0,"n_rows":101,"n_cols":7,"rows_kept":101,"cut":false,"hidden":true,"merged":[[0,6,3,19],[100,0,100,18]]}
[null," ",null,null,null,null,{"$f":"Levels!E27","v":"Converting a Percentage to a Fraction"}]
[]
[]
[]
[]
[]
[]
[]
[]
[]
[]
[]
[{"$f":"Levels!G39","v":0}]
[]
[]
[]
[]
[]
[]
[]
[]
[]
[]
[]
[]
[]
[]
[]
[]
[]
[]
[]
[]
[]
[]
[]
[]
[]
[]
[]
[]
[]
[]
[]
[]
[]
[]
[]
[]
[]
[]
[]
[]
[]
[]
[]
[]
[]
[]
[]
[]
[]
[]
[]
[]
[]
[]
[]
[]
[]
[]
[]
[]
[]
[]
[]
[]
[]
[]
[]
[]
[]
[]
[]
[]
[]
[]
[]
[]
[]
[]
[]
[]
[]
[]
[]
[]
[]
[]
[]
["© 2015, Maths Kingdom, All Rights Reserved"]

{"sheet":"EG ","index":1,"n_rows":51,"n_cols":156,"rows_kept":51,"cut":false,"hidden":true,"merged":[[23,34,23,37],[25,30,25,71],[28,30,28,71],[43,48,43,53],[40,66,40,71],[2,0,2,2],[4,0,4,3],[6,0,6,2],[16,30,16,71],[18,30,18,71],[0,62,0,100],[4,4,4,6],[1,76,6,100],[4,50,4,53],[4,45,4,48],[4,14,4,22],[4,23,4,25],[4,33,4,44],[8,117,8,130],[9,135,9,139],[9,141,9,142],[9,151,9,152],[9,155,9,159],[50,0,50,100],[31,30,31,71],[33,30,33,50],[33,51,33,71],[34,48,34,53],[37,48,37,53],[46,48,46,53]]}
[{"$f":"Levels!E27","v":"Converting a Percentage to a Fraction"},null,null,null,null,null,null,null,null,null,null,null,null,null,null,null,null,null,null,null,null,null,null,null,null,null,null,null,null,null,null,null,null,null,null,null,null,null,null,null,null,null,null,null,null,null,null,null,null,null,null,null,null,null,null,null,null,null,null,null,null,null,{"$f":"TODAY()","v":"2015-11-25"}]
[null,null,null,null,null,null,null,null,null,null,null,null,null,null,null,null,null,null,null,null,null,null,null,null,null,null,null,null,null,null,null,null,null,null,null,null,null,null,null,null,null,null,null,null,null,null,null,null,null,null,null,null,null,null,null,null,null,null,null,null,null,null,null,null,null,null,null,null,null,null,null,null,null,null,null,null,{"$f":"Levels!AC28","v":"Inequality"}]
["LO ",null,null,{"$f":"Levels!E29","v":"To be able to convert a percentage to a fraction"}]
[]
["Type",null,null,null,10,null,null,null,null,null,null,null,null,null,{"$f":"Levels!E41","v":"Level"},null,null,null,null,null,null,null,null,{"$f":"VLOOKUP(E5,Levels!B42:I51,4,FALSE)","v":4},null,null,null,null,null,null,null,null,null," Numbers Between",null,null,null,null,null,null,null,null,null,null,null,{"$f":"VLOOKUP(E5,Levels!B42:Q51,15,FALSE)","v":1},null,null,null,"-",{"$f":"VLOOKUP(E5,Levels!B42:S51,17,FALSE)","v":99}]
[]
["QU",null,null,{"$f":"Levels!E33","v":"Convert the following percentages to a fraction"}]
[]
[null,null,null,null,null,null,null,null,null,null,null,null,null,null,null,null,null,null,null,null,null,null,null,null,null,null,null,null,null,null,null,null,null,null,null,null,null,null,null,null,null,null,null,null,null,null,null,null,null,null,null,null,null,null,null,null,null,null,null,null,null,null,null,null,null,null,null,null,null,null,null,null,null,null,null,null,null,null,null,null,null,null,null,null,null,null,null,null,null,null,null,null,null,null,null,null,null,null,null,null,null,null,null,null,null,null,null,null,null,null,null,null,null,null,null,null,null,"Question 1"]
[null,null,null,null,null,null,null,null,null,null,null,null,null,null,null,null,null,null,null,null,null,null,null,null,null,null,null,null,null,null,null,null,null,null,null,null,null,null,null,null,null,null,null,null,null,null,null,null,null,null,null,null,null,null,null,null,null,null,null,null,null,null,null,null,null,null,null,null,null,null,null,null,null,null,null,null,null,null,null,null,null,null,null,null,null,null,null,null,null,null,null,null,null,null,null,null,null,null,null,null,null,null,null,null,null,null,null,null,null,null,null,null,null,null,null,null,null,null,null,null,null,null,null,null,null,null,null,null,null,null,null,null,null,null,null,{"$f":"RANDBETWEEN($AT$5,$AY$5)","v":93},null,null,null,null,null,{"$f":"RANDBETWEEN(1,2)","v":1},null,null,null,null,null,null,null,null,null,{"$f":"RANDBETWEEN(1,2)","v":2},null,null,null,{"$f":"EF10+RANDBETWEEN(1,10)","v":95}]
[]
[]
[]
[]
[]
[]
[null,null,null,null,null,null,null,null,null,null,null,null,null,null,null,null,null,null,null,null,null,null,null,null,null,null,null,null,null,null,"What does the word percent mean?"]
[]
[null,null,null,null,null,null,null,null,null,null,null,null,null,null,null,null,null,null,null,null,null,null,null,null,null,null,null,null,null,null,"\"out of 100\"    \"per 100\""]
[]
[]
[]
[]
[null,null,null,null,null,null,null,null,null,null,null,null,null,null,null,null,null,null,null,null,null,null,null,null,null,null,null,null,null,null,null,null,null,null,{"$f":"RANDBETWEEN($AT$5,$AY$5)","v":74}]
[]
[null,null,null,null,null,null,null,null,null,null,null,null,null,null,null,null,null,null,null,null,null,null,null,null,null,null,null,null,null,null,{"$f":"\"Convert  \"&AI24&\"%  to a fraction\"","v":"Convert  74%  to a fraction"}]
[]
[]
[null,null,null,null,null,null,null,null,null,null,null,null,null,null,null,null,null,null,null,null,null,null,null,null,null,null,null,null,null,null,{"$f":"AI24&\"%  is the same as saying \"&AI24&\" out of 100\"","v":"74%  is the same as saying 74 out of 100"}]
[]
[]
[null,null,null,null,null,null,null,null,null,null,null,null,null,null,null,null,null,null,null,null,null,null,null,null,null,null,null,null,null,null,"How would you write this as a fraction?"]
[]
[]
[null,null,null,null,null,null,null,null,null,null,null,null,null,null,null,null,null,null,null,null,null,null,null,null,null,null,null,null,null,null,null,null,null,null,null,null,null,null,null,null,null,null,null,null,null,null,null,null,{"$f":"AI24","v":74}]
[]
[]
[null,null,null,null,null,null,null,null,null,null,null,null,null,null,null,null,null,null,null,null,null,null,null,null,null,null,null,null,null,null,null,null,null,null,null,null,null,null,null,null,null,null,null,null,null,null,null,null,100]
[]
[]
[null,null,null,null,null,null,null,null,null,null,null,null,null,null,null,null,null,null,null,null,null,null,null,null,null,null,null,null,null,null,"Could this fraction be simplifed?",null,null,null,null,null,null,null,null,null,null,null,null,null,null,null,null,null,null,null,null,null,null,null,null,null,null,null,null,null,null,null,null,null,null,null,{"$f":"IF(AW44=AW35,\"NO\",\"YES\")","v":"YES"}]
[]
[]
[null,null,null,null,null,null,null,null,null,null,null,null,null,null,null,null,null,null,null,null,null,null,null,null,null,null,null,null,null,null,null,null,null,null,null,null,null,null,null,null,null,null,null,null,null,null,null,null,{"$f":"AW35/GCD(AW35,AW38)","v":37}]
[]
[]
[null,null,null,null,null,null,null,null,null,null,null,null,null,null,null,null,null,null,null,null,null,null,null,null,null,null,null,null,null,null,null,null,null,null,null,null,null,null,null,null,null,null,null,null,null,null,null,null,{"$f":"AW38/GCD(AW35,AW38)","v":50}]
[]
[]
[]
[{"$f":"FP!A101","v":"© 2015, Maths Kingdom, All Rights Reserved"}]

{"sheet":"QU","index":2,"n_rows":40,"n_cols":156,"rows_kept":40,"cut":false,"hidden":true,"merged":[[8,117,8,130],[9,135,9,139],[9,141,9,142],[9,151,9,152],[9,155,9,159],[25,5,25,11],[25,14,26,17],[25,19,25,25],[25,33,25,39],[25,47,25,53],[25,61,25,67],[25,75,25,81],[25,89,25,95],[26,5,26,11],[26,19,26,25],[26,33,26,39],[26,47,26,53],[26,61,26,67],[26,75,26,81],[26,89,26,95],[23,89,23,95],[22,5,22,11],[22,19,22,25],[22,33,22,39],[0,62,0,100],[1,76,6,100],[4,0,4,3],[4,45,4,48],[4,50,4,53],[4,4,4,6],[4,23,4,25],[4,14,4,22],[4,33,4,44],[6,0,6,2],[2,0,2,2],[39,0,39,100],[19,47,19,49],[20,47,20,53],[19,61,19,63],[20,61,20,67],[19,75,19,77],[34,5,34,11],[35,5,35,11],[34,19,34,25],[35,19,35,25],[35,33,35,39],[36,33,36,39],[34,33,34,39],[34,47,34,53],[35,47,35,53],[34,61,34,67],[35,61,35,67],[20,75,20,81],[19,89,19,91],[20,89,20,95],[28,5,28,7],[28,19,28,21],[28,33,28,35],[28,47,28,49],[28,61,28,63],[28,75,28,77],[28,89,28,91],[20,5,20,11],[20,19,20,25],[19,5,19,7],[19,19,19,21],[19,33,19,35],[20,33,20,39],[22,75,22,81],[22,89,22,95],[23,5,23,11],[23,19,23,25],[23,33,23,39],[23,47,23,53],[23,61,23,67],[23,75,23,81],[22,14,23,17],[22,47,22,53],[22,61,22,67],[29,75,29,81],[29,89,29,95],[31,5,31,11],[31,19,31,25],[31,33,31,39],[31,47,31,53],[31,61,31,67],[31,75,31,81],[31,89,31,95],[29,5,29,11],[29,19,29,25],[29,33,29,39],[29,47,29,53],[29,61,29,67],[32,75,32,81],[32,89,32,95],[32,5,32,11],[32,19,32,25],[32,33,32,39],[32,47,32,53],[32,61,32,67],[34,75,34,81],[35,75,35,81],[34,89,34,95],[35,89,35,95]]}
[{"$f":"Levels!E27","v":"Converting a Percentage to a Fraction"},null,null,null,null,null,null,null,null,null,null,null,null,null,null,null,null,null,null,null,null,null,null,null,null,null,null,null,null,null,null,null,null,null,null,null,null,null,null,null,null,null,null,null,null,null,null,null,null,null,null,null,null,null,null,null,null,null,null,null,null,null,{"$f":"TODAY()","v":"2015-11-25"}]
[null,null,null,null,null,null,null,null,null,null,null,null,null,null,null,null,null,null,null,null,null,null,null,null,null,null,null,null,null,null,null,null,null,null,null,null,null,null,null,null,null,null,null,null,null,null,null,null,null,null,null,null,null,null,null,null,null,null,null,null,null,null,null,null,null,null,null,null,null,null,null,null,null,null,null,null,{"$f":"Levels!AC28","v":"Inequality"}]
["LO ",null,null,{"$f":"Levels!E29","v":"To be able to convert a percentage to a fraction"}]
[]
["Type",null,null,null,10,null,null,null,null,null,null,null,null,null,{"$f":"Levels!E41","v":"Level"},null,null,null,null,null,null,null,null,{"$f":"VLOOKUP(E5,Levels!B42:I51,4,FALSE)","v":4},null,null,null,null,null,null,null,null,null," Numbers Between",null,null,null,null,null,null,null,null,null,null,null,{"$f":"VLOOKUP(E5,Levels!B42:Q51,15,FALSE)","v":1},null,null,null,"-",{"$f":"VLOOKUP(E5,Levels!B42:S51,17,FALSE)","v":99}]
[]
["QU",null,null,{"$f":"Levels!E33","v":"Convert the following percentages to a fraction"}]
[]
[null,null,null,null,null,null,null,null,null,null,null,null,null,null,null,null,null,null,null,null,null,null,null,null,null,null,null,null,null,null,null,null,null,null,null,null,null,null,null,null,null,null,null,null,null,null,null,null,null,null,null,null,null,null,null,null,null,null,null,null,null,null,null,null,null,null,null,null,null,null,null,null,null,null,null,null,null,null,null,null,null,null,null,null,null,null,null,null,null,null,null,null,null,null,null,null,null,null,null,null,null,null,null,null,null,null,null,null,null,null,null,null,null,null,null,null,null,"Question 1"]
[null,null,null,null,null,null,null,null,null,null,null,null,null,null,null,null,null,null,null,null,null,null,null,null,null,null,null,null,null,null,null,null,null,null,null,null,null,null,null,null,null,null,null,null,null,null,null,null,null,null,null,null,null,null,null,null,null,null,null,null,null,null,null,null,null,null,null,null,null,null,null,null,null,null,null,null,null,null,null,null,null,null,null,null,null,null,null,null,null,null,null,null,null,null,null,null,null,null,null,null,null,null,null,null,null,null,null,null,null,null,null,null,null,null,null,null,null,null,null,null,null,null,null,null,null,null,null,null,null,null,null,null,null,null,null,{"$f":"RANDBETWEEN($AT$5,$AY$5)","v":67},null,null,null,null,null,{"$f":"RANDBETWEEN(1,2)","v":2},null,null,null,null,null,null,null,null,null,{"$f":"RANDBETWEEN(1,2)","v":1},null,null,null,{"$f":"EF10+RANDBETWEEN(1,10)","v":70}]
[]
[]
[]
[]
[]
[]
[]
[]
[]
[null,null,null,null,null,1,null,null,null,null,null,null,null,null,null,null,null,null,null,{"$f":"F20+1","v":2},null,null,null,null,null,null,null,null,null,null,null,null,null,{"$f":"T20+1","v":3},null,null,null,null,null,null,null,null,null,null,null,null,null,{"$f":"AH20+1","v":4},null,null,null,null,null,null,null,null,null,null,null,null,null,{"$f":"AV20+1","v":5},null,null,null,null,null,null,null,null,null,null,null,null,null,{"$f":"BJ20+1","v":6},null,null,null,null,null,null,null,null,null,null,null,null,null,{"$f":"BX20+1","v":7}]
[null,null,null,null,null,{"$f":"F23&\"%\"","v":"49%"},null,null,null,null,null,null,null,null,null,null,null,null,null,{"$f":"T23&\"%\"","v":"50%"},null,null,null,null,null,null,null,null,null,null,null,null,null,{"$f":"AH23&\"%\"","v":"15%"},null,null,null,null,null,null,null,null,null,null,null,null,null,{"$f":"AV23&\"%\"","v":"6%"},null,null,null,null,null,null,null,null,null,null,null,null,null,{"$f":"BJ23&\"%\"","v":"88%"},null,null,null,null,null,null,null,null,null,null,null,null,null,{"$f":"BX23&\"%\"","v":"92%"},null,null,null,null,null,null,null,null,null,null,null,null,null,{"$f":"CL23&\"%\"","v":"8%"}]
[]
[null,null,null,null,null,{"$f":"RANDBETWEEN($AT$5,$AY$5)","v":49},null,null,null,null,null,null,null,null,null,null,null,null,null,{"$f":"RANDBETWEEN($AT$5,$AY$5)","v":50},null,null,null,null,null,null,null,null,null,null,null,null,null,{"$f":"RANDBETWEEN($AT$5,$AY$5)","v":15},null,null,null,null,null,null,null,null,null,null,null,null,null,{"$f":"RANDBETWEEN($AT$5,$AY$5)","v":6},null,null,null,null,null,null,null,null,null,null,null,null,null,{"$f":"RANDBETWEEN($AT$5,$AY$5)","v":88},null,null,null,null,null,null,null,null,null,null,null,null,null,{"$f":"RANDBETWEEN($AT$5,$AY$5)","v":92},null,null,null,null,null,null,null,null,null,null,null,null,null,{"$f":"RANDBETWEEN($AT$5,$AY$5)","v":8}]
[null,null,null,null,null,100,null,null,null,null,null,null,null,null,null,null,null,null,null,100,null,null,null,null,null,null,null,null,null,null,null,null,null,100,null,null,null,null,null,null,null,null,null,null,null,null,null,100,null,null,null,null,null,null,null,null,null,null,null,null,null,100,null,null,null,null,null,null,null,null,null,null,null,null,null,100,null,null,null,null,null,null,null,null,null,null,null,null,null,100]
[]
[null,null,null,null,null,{"$f":"IF(GCD(F23,F24)>1,F23/GCD(F23,F24),\"\")","v":""},null,null,null,null,null,null,null,null,null,null,null,null,null,{"$f":"IF(GCD(T23,T24)>1,T23/GCD(T23,T24),\"\")","v":1},null,null,null,null,null,null,null,null,null,null,null,null,null,{"$f":"IF(GCD(AH23,AH24)>1,AH23/GCD(AH23,AH24),\"\")","v":3},null,null,null,null,null,null,null,null,null,null,null,null,null,{"$f":"IF(GCD(AV23,AV24)>1,AV23/GCD(AV23,AV24),\"\")","v":3},null,null,null,null,null,null,null,null,null,null,null,null,null,{"$f":"IF(GCD(BJ23,BJ24)>1,BJ23/GCD(BJ23,BJ24),\"\")","v":22},null,null,null,null,null,null,null,null,null,null,null,null,null,{"$f":"IF(GCD(BX23,BX24)>1,BX23/GCD(BX23,BX24),\"\")","v":23},null,null,null,null,null,null,null,null,null,null,null,null,null,{"$f":"IF(GCD(CL23,CL24)>1,CL23/GCD(CL23,CL24),\"\")","v":2}]
[null,null,null,null,null,{"$f":"IF(GCD(F23,F24)>1,F24/GCD(F23,F24),\"\")","v":""},null,null,null,null,null,null,null,null,null,null,null,null,null,{"$f":"IF(GCD(T23,T24)>1,T24/GCD(T23,T24),\"\")","v":2},null,null,null,null,null,null,null,null,null,null,null,null,null,{"$f":"IF(GCD(AH23,AH24)>1,AH24/GCD(AH23,AH24),\"\")","v":20},null,null,null,null,null,null,null,null,null,null,null,null,null,{"$f":"IF(GCD(AV23,AV24)>1,AV24/GCD(AV23,AV24),\"\")","v":50},null,null,null,null,null,null,null,null,null,null,null,null,null,{"$f":"IF(GCD(BJ23,BJ24)>1,BJ24/GCD(BJ23,BJ24),\"\")","v":25},null,null,null,null,null,null,null,null,null,null,null,null,null,{"$f":"IF(GCD(BX23,BX24)>1,BX24/GCD(BX23,BX24),\"\")","v":25},null,null,null,null,null,null,null,null,null,null,null,null,null,{"$f":"IF(GCD(CL23,CL24)>1,CL24/GCD(CL23,CL24),\"\")","v":25}]
[]
[null,null,null,null,null,8,null,null,null,null,null,null,null,null,null,null,null,null,null,{"$f":"F29+1","v":9},null,null,null,null,null,null,null,null,null,null,null,null,null,{"$f":"T29+1","v":10},null,null,null,null,null,null,null,null,null,null,null,null,null,{"$f":"AH29+1","v":11},null,null,null,null,null,null,null,null,null,null,null,null,null,{"$f":"AV29+1","v":12},null,null,null,null,null,null,null,null,null,null,null,null,null,{"$f":"BJ29+1","v":13},null,null,null,null,null,null,null,null,null,null,null,null,null,{"$f":"BX29+1","v":14}]
[null,null,null,null,null,{"$f":"F32&\"%\"","v":"76%"},null,null,null,null,null,null,null,null,null,null,null,null,null,{"$f":"T32&\"%\"","v":"2%"},null,null,null,null,null,null,null,null,null,null,null,null,null,{"$f":"AH32&\"%\"","v":"54%"},null,null,null,null,null,null,null,null,null,null,null,null,null,{"$f":"AV32&\"%\"","v":"17%"},null,null,null,null,null,null,null,null,null,null,null,null,null,{"$f":"BJ32&\"%\"","v":"71%"},null,null,null,null,null,null,null,null,null,null,null,null,null,{"$f":"BX32&\"%\"","v":"21%"},null,null,null,null,null,null,null,null,null,null,null,null,null,{"$f":"CL32&\"%\"","v":"56%"}]
[]
[null,null,null,null,null,{"$f":"RANDBETWEEN($AT$5,$AY$5)","v":76},null,null,null,null,null,null,null,null,null,null,null,null,null,{"$f":"RANDBETWEEN($AT$5,$AY$5)","v":2},null,null,null,null,null,null,null,null,null,null,null,null,null,{"$f":"RANDBETWEEN($AT$5,$AY$5)","v":54},null,null,null,null,null,null,null,null,null,null,null,null,null,{"$f":"RANDBETWEEN($AT$5,$AY$5)","v":17},null,null,null,null,null,null,null,null,null,null,null,null,null,{"$f":"RANDBETWEEN($AT$5,$AY$5)","v":71},null,null,null,null,null,null,null,null,null,null,null,null,null,{"$f":"RANDBETWEEN($AT$5,$AY$5)","v":21},null,null,null,null,null,null,null,null,null,null,null,null,null,{"$f":"RANDBETWEEN($AT$5,$AY$5)","v":56}]
[null,null,null,null,null,100,null,null,null,null,null,null,null,null,null,null,null,null,null,100,null,null,null,null,null,null,null,null,null,null,null,null,null,100,null,null,null,null,null,null,null,null,null,null,null,null,null,100,null,null,null,null,null,null,null,null,null,null,null,null,null,100,null,null,null,null,null,null,null,null,null,null,null,null,null,100,null,null,null,null,null,null,null,null,null,null,null,null,null,100]
[]
[null,null,null,null,null,{"$f":"IF(GCD(F32,F33)>1,F32/GCD(F32,F33),\"\")","v":19},null,null,null,null,null,null,null,null,null,null,null,null,null,{"$f":"IF(GCD(T32,T33)>1,T32/GCD(T32,T33),\"\")","v":1},null,null,null,null,null,null,null,null,null,null,null,null,null,{"$f":"IF(GCD(AH32,AH33)>1,AH32/GCD(AH32,AH33),\"\")","v":27},null,null,null,null,null,null,null,null,null,null,null,null,null,{"$f":"IF(GCD(AV32,AV33)>1,AV32/GCD(AV32,AV33),\"\")","v":""},null,null,null,null,null,null,null,null,null,null,null,null,null,{"$f":"IF(GCD(BJ32,BJ33)>1,BJ32/GCD(BJ32,BJ33),\"\")","v":""},null,null,null,null,null,null,null,null,null,null,null,null,null,{"$f":"IF(GCD(BX32,BX33)>1,BX32/GCD(BX32,BX33),\"\")","v":""},null,null,null,null,null,null,null,null,null,null,null,null,null,{"$f":"IF(GCD(CL32,CL33)>1,CL32/GCD(CL32,CL33),\"\")","v":14}]
[null,null,null,null,null,{"$f":"IF(GCD(F32,F33)>1,F33/GCD(F32,F33),\"\")","v":25},null,null,null,null,null,null,null,null,null,null,null,null,null,{"$f":"IF(GCD(T32,T33)>1,T33/GCD(T32,T33),\"\")","v":50},null,null,null,null,null,null,null,null,null,null,null,null,null,{"$f":"IF(GCD(AH32,AH33)>1,AH33/GCD(AH32,AH33),\"\")","v":50},null,null,null,null,null,null,null,null,null,null,null,null,null,{"$f":"IF(GCD(AV32,AV33)>1,AV33/GCD(AV32,AV33),\"\")","v":""},null,null,null,null,null,null,null,null,null,null,null,null,null,{"$f":"IF(GCD(BJ32,BJ33)>1,BJ33/GCD(BJ32,BJ33),\"\")","v":""},null,null,null,null,null,null,null,null,null,null,null,null,null,{"$f":"IF(GCD(BX32,BX33)>1,BX33/GCD(BX32,BX33),\"\")","v":""},null,null,null,null,null,null,null,null,null,null,null,null,null,{"$f":"IF(GCD(CL32,CL33)>1,CL33/GCD(CL32,CL33),\"\")","v":25}]
[]
[]
[]
[{"$f":"FP!A101","v":"© 2015, Maths Kingdom, All Rights Reserved"}]

{"sheet":"Levels","index":3,"n_rows":76,"n_cols":29,"rows_kept":76,"cut":false,"hidden":true,"merged":[[53,0,53,52],[32,57,32,58],[28,26,28,27],[26,4,26,24],[28,4,28,25],[32,4,32,25],[26,28,26,52],[27,28,32,52],[28,1,28,3],[32,1,32,3],[49,15,49,16],[49,17,49,18],[47,17,47,18],[50,11,50,12],[48,11,48,12],[49,11,49,12],[45,17,45,18],[46,15,46,16],[46,17,46,18],[48,15,48,16],[48,17,48,18],[44,17,44,18],[50,15,50,16],[50,17,50,18],[47,15,47,16],[40,11,40,12],[41,11,41,12],[42,11,42,12],[43,17,43,18],[40,15,40,18],[43,15,43,16],[43,11,43,12],[41,15,41,16],[41,17,41,18],[42,15,42,16],[42,17,42,18],[44,11,44,12],[45,11,45,12],[46,11,46,12],[47,11,47,12],[44,15,44,16],[40,4,40,8],[41,4,41,8],[42,4,42,8],[43,4,43,8],[44,4,44,8],[45,15,45,16],[50,4,50,8],[45,4,45,8],[46,4,46,8],[47,4,47,8],[48,4,48,8],[49,4,49,8]]}
[]
[]
[]
[]
[]
[]
[]
[]
[]
[]
[]
[]
[]
[]
[]
[]
[]
[]
[]
[]
[]
[]
[]
[]
[]
[]
[null,"Title",null,null,"Converting a Percentage to a Fraction"]
[null,null,null,null,null,null,null,null,null,null,null,null,null,null,null,null,null,null,null,null,null,null,null,null,null,null,null,null,"Inequality"]
[null,"LO ",null,null,"To be able to convert a percentage to a fraction",null,null,null,null,null,null,null,null,null,null,null,null,null,null,null,null,null,null,null,null,null,"keywords"]
[]
[]
[]
[null,"QU",null,null,"Convert the following percentages to a fraction"]
[]
[]
[]
[]
[]
[]
[]
[null,"Type",null,null,"Level",null,null,null,null,null,null,"Grade",null,null,null,"Numbers between ",null,null,null,null,80]
[null,1,null,null,4,null,null,null,null,null,null,"B",null,null,null,1,null,10]
[null,2,null,null,4,null,null,null,null,null,null,"B",null,null,null,1,null,20]
[null,3,null,null,4,null,null,null,null,null,null,"B",null,null,null,1,null,30]
[null,4,null,null,4,null,null,null,null,null,null,"B",null,null,null,1,null,40]
[null,5,null,null,4,null,null,null,null,null,null,"B",null,null,null,1,null,45]
[null,6,null,null,4,null,null,null,null,null,null,"B",null,null,null,1,null,50]
[null,7,null,null,4,null,null,null,null,null,null,"B",null,null,null,1,null,60]
[null,8,null,null,4,null,null,null,null,null,null,"B",null,null,null,1,null,70]
[null,9,null,null,4,null,null,null,null,null,null,"B",null,null,null,1,null,80]
[null,10,null,null,4,null,null,null,null,null,null,"B",null,null,null,1,null,99]
[]
[]
[{"$f":"FP!A101","v":"© 2015, Maths Kingdom, All Rights Reserved"}]
["Level","G"]
["Grade","F",null,null,null,null,null,null,null,null,null,null,null,null,"Select from the list provided"]
[null,"E"]
[null,"D"]
[null,"C"]
[null,"B"]
[null,"A"]
[null,"A*"]
[null,1]
[null,2]
[null,3]
[null,4]
[null,5]
[null,6]
[null,7]
[null,8]
[null,9]
[null,10]
[null,11]
[null,12]
[null,13]
[null,14]

{"sheet":"EM","index":4,"n_rows":0,"n_cols":0,"rows_kept":0,"cut":false,"hidden":false,"merged":[]}